fUSD/lending_fUSD_20240523
["ID","MTS","AMOUNT","RATE_DAILY","PERIOD"]
[327746687,1716426654662,-500.0,0.00021917,2]
[327746688,1716426654671,-575.12,0.00021917,2]
[327746689,1716426654680,-500.0,0.00021917,2]
[327746690,1716426654689,-500.0,0.00021917,2]
[327746691,1716426654698,-547.65,0.00021917,2]
[327746692,1716426654708,-1470.65,0.00021917,2]
[327746693,1716426654717,-14731.76,0.00021917,2]
[327746694,1716426654726,-500.0,0.00021917,2]
[327746695,1716426654737,-185.07630006,0.00021917,2]
[327746696,1716426654747,-504.84688632,0.00021917,2]
[327746697,1716426654757,-2344.74,0.00021917,2]
[327746698,1716426654766,-500.0,0.00021917,2]
[327746699,1716426654776,-500.0,0.00021917,2]
[327746700,1716426654787,-1264.37,0.00021917,2]
[327746701,1716426654797,-151.0,0.00021917,2]
[327746702,1716426654806,-500.0,0.00021917,2]
[327746703,1716426654817,-686.11,0.00021917,2]
[327746704,1716426654826,-619.76,0.00021917,2]
[327746705,1716426654836,-500.0,0.00021917,2]
[327746706,1716426654845,-500.0,0.00021917,2]
[327746707,1716426654855,-574.64132475,0.00021917,2]
[327746708,1716426654864,-500.0,0.00021917,2]
[327746709,1716426654873,-500.0,0.00021917,2]
[327746710,1716426654882,-546.73,0.00021917,2]
[327746711,1716426654891,-500.0,0.00021917,2]
[327746712,1716426654900,-500.0,0.00021917,2]
[327746713,1716426654910,-5594.05,0.00021917,2]
[327746714,1716426654920,-1798.9,0.00021917,2]
[327746715,1716426654928,-500.0,0.00021917,2]
[327746716,1716426654938,-500.0,0.00021917,2]
[327746717,1716426654948,-500.0,0.00021917,2]
[327746718,1716426654957,-500.0,0.00021917,2]
[327746719,1716426654967,-500.0,0.00021917,2]
[327746720,1716426654977,-500.0,0.00021917,2]
[327746721,1716426654987,-508.56831799,0.00021917,2]
[327746722,1716426654996,-502.61240368,0.00021917,2]
[327746723,1716426655006,-500.0,0.00021917,2]
[327746724,1716426655016,-500.0,0.00021917,2]
[327746725,1716426655025,-527.03,0.00021917,2]
[327746726,1716426655035,-500.0,0.00021917,2]
[327746727,1716426655044,-500.0,0.00021917,2]
[327746728,1716426655054,-500.0,0.00021917,2]
[327746729,1716426655063,-500.0,0.00021917,2]
[327746730,1716426655072,-3516.8,0.00021917,2]
[327746731,1716426655081,-636.78,0.00021917,2]
[327746732,1716426655090,-914.59,0.00021917,2]
[327746733,1716426655099,-207.33204815,0.00021917,2]
[327746734,1716426655110,-500.0,0.00021917,2]
[327746735,1716426655119,-500.0,0.00021917,2]
[327746736,1716426655128,-501.64,0.00021917,2]
[327746737,1716426655141,-509.17732942,0.00021917,2]
[327746738,1716426655150,-500.0,0.00021917,2]
[327746739,1716426655159,-500.0,0.00021917,2]
[327746740,1716426655168,-500.0,0.00021917,2]
[327746741,1716426655177,-500.0,0.00021917,2]
[327746742,1716426655187,-500.0,0.00021917,2]
[327746743,1716426655196,-500.0,0.00021917,2]
[327746744,1716426655204,-500.0,0.00021917,2]
[327746745,1716426655213,-500.0,0.00021917,2]
[327746746,1716426655223,-500.0,0.00021917,2]
[327746747,1716426655232,-500.0,0.00021917,2]
[327746748,1716426655241,-500.0,0.00021917,2]
[327746749,1716426655251,-500.0,0.00021917,2]
[327746750,1716426655260,-524.45311274,0.00021917,2]
[327746751,1716426655269,-1175.93,0.00021917,2]
[327746752,1716426655278,-500.0,0.00021917,2]
[327746753,1716426655287,-500.0,0.00021917,2]
[327746754,1716426655296,-2059.71,0.00021917,2]
[327746755,1716426655305,-957.12,0.00021917,2]
[327746756,1716426655314,-500.0,0.00021917,2]
[327746757,1716426655324,-500.0,0.00021917,2]
[327746758,1716426655333,-500.0,0.00021917,2]
[327746759,1716426655342,-500.0,0.00021917,2]
[327746760,1716426655351,-500.0,0.00021917,2]
[327746761,1716426655361,-500.0,0.00021917,2]
[327746762,1716426655370,-1128.5,0.00021917,2]
[327746763,1716426655379,-825.32,0.00021917,2]
[327746764,1716426655388,-511.98659045,0.00021917,2]
[327746765,1716426655398,-652.34,0.00021917,2]
[327746766,1716426655407,-500.0,0.00021917,2]
[327746767,1716426655417,-500.0,0.00021917,2]
[327746768,1716426655426,-500.0,0.00021917,2]
[327746769,1716426655435,-500.0,0.00021917,2]
[327746770,1716426655444,-5743.77,0.00021917,2]
[327746771,1716426655454,-500.0,0.00021917,2]
[327746772,1716426655463,-500.0,0.00021917,2]
[327746773,1716426655472,-529.71,0.00021917,2]
[327746774,1716426655482,-663.83,0.00021917,2]
[327746775,1716426655492,-500.0,0.00021917,2]
[327746776,1716426655501,-590.14,0.00021917,2]
[327746777,1716426655510,-1020.99,0.00021917,2]
[327746778,1716426655520,-500.0,0.00021917,2]
[327746779,1716426655529,-500.0,0.00021917,2]
[327746780,1716426655539,-500.0,0.00021917,2]
[327746781,1716426655548,-500.0,0.00021917,2]
[327746782,1716426655558,-500.0,0.00021917,2]
[327746783,1716426655567,-500.0,0.00021917,2]
[327746784,1716426655577,-667.65,0.00021917,2]
[327746785,1716426655587,-512.86294942,0.00021917,2]
[327746786,1716426655596,-740.4,0.00021917,2]
[327746787,1716426655605,-771.62,0.00021917,2]
[327746788,1716426655616,-931.25,0.00021917,2]
[327746789,1716426655625,-513.49836545,0.00021917,2]
[327746790,1716426655634,-500.0,0.00021917,2]
[327746791,1716426655643,-500.0,0.00021917,2]
[327746792,1716426655653,-500.0,0.00021917,2]
[327746793,1716426655662,-504.10735017,0.00021917,2]
[327746794,1716426655671,-514.18084932,0.00021917,2]
[327746795,1716426655680,-1211.63,0.00021917,2]
[327746796,1716426655690,-500.0,0.00021917,2]
[327746797,1716426655699,-522.09957087,0.00021917,2]
[327746798,1716426655708,-151.0,0.00021917,2]
[327746799,1716426655717,-500.0,0.00021917,2]
[327746800,1716426655727,-500.0,0.00021917,2]
[327746801,1716426655742,-205.512768,0.00021917,2]
[327746802,1716426655751,-500.0,0.00021917,2]
[327746803,1716426655761,-504.7214764,0.00021917,2]
[327746804,1716426655770,-151.0,0.00021917,2]
[327746805,1716426655782,-1055.34,0.00021917,2]
[327746806,1716426655791,-500.0,0.00021917,2]
[327746807,1716426655801,-151.0,0.00021917,2]
[327746808,1716426655810,-500.0,0.00021917,2]
[327746809,1716426655820,-151.0,0.00021917,2]
[327746810,1716426655829,-5023.58,0.00021917,2]
[327746811,1716426655839,-500.0,0.00021917,2]
[327746812,1716426655848,-907.73,0.00021917,2]
[327746813,1716426655859,-500.0,0.00021917,2]
[327746814,1716426655868,-500.0,0.00021917,2]
[327746815,1716426655877,-6459.85,0.00021917,2]
[327746816,1716426655885,-500.0,0.00021917,2]
[327746817,1716426655894,-2440.64,0.00021917,2]
[327746818,1716426655903,-1219.92,0.00021917,2]
[327746819,1716426655912,-500.0,0.00021917,2]
[327746820,1716426655921,-500.0,0.00021917,2]
[327746821,1716426655930,-151.0,0.00021917,2]
[327746822,1716426655940,-151.0,0.00021917,2]
[327746823,1716426655950,-151.0,0.00021917,2]
[327746824,1716426655959,-500.0,0.00021917,2]
[327746825,1716426655968,-510.44945625,0.00021917,2]
[327746826,1716426655977,-500.0,0.00021917,2]
[327746827,1716426655986,-151.0,0.00021917,2]
[327746828,1716426655996,-504.08296239,0.00021917,2]
[327746829,1716426656005,-151.0,0.00021917,2]
[327746830,1716426656014,-151.0,0.00021917,2]
[327746831,1716426656023,-500.0,0.00021917,2]
[327746832,1716426656032,-500.0,0.00021917,2]
[327746833,1716426656041,-500.0,0.00021917,2]
[327746834,1716426656050,-505.7431587,0.00021917,2]
[327746835,1716426656059,-500.0,0.00021917,2]
[327746836,1716426656069,-500.0,0.00021917,2]
[327746837,1716426656078,-500.0,0.00021917,2]
[327746838,1716426656087,-508.81795265,0.00021917,2]
[327746839,1716426656096,-500.0,0.00021917,2]
[327746840,1716426656105,-500.0,0.00021917,2]
[327746841,1716426656116,-500.0,0.00021917,2]
[327746842,1716426656125,-997.06,0.00021917,2]
[327746843,1716426656134,-500.0,0.00021917,2]
[327746844,1716426656143,-510.73870324,0.00021917,2]
[327746845,1716426656154,-500.0,0.00021917,2]
[327746846,1716426656164,-850.39,0.00021917,2]
[327746847,1716426656173,-504.60725535,0.00021917,2]
[327746848,1716426656182,-500.0,0.00021917,2]
[327746849,1716426656192,-500.0,0.00021917,2]
[327746850,1716426656201,-160.835563,0.00021917,2]
[327746851,1716426656212,-160.835563,0.00021917,2]
[327746852,1716426656222,-500.0,0.00021917,2]
[327746853,1716426656231,-547.26,0.00021917,2]
[327746854,1716426656241,-160.835563,0.00021917,2]
[327746855,1716426656252,-511.01026102,0.00021917,2]
[327746856,1716426656261,-500.0,0.00021917,2]
[327746857,1716426656272,-500.0,0.00021917,2]
[327746858,1716426656282,-160.835563,0.00021917,2]
[327746859,1716426656291,-500.0,0.00021917,2]
[327746860,1716426656301,-2891.8,0.00021917,2]
[327746861,1716426656311,-506.04452436,0.00021917,2]
[327746862,1716426656321,-500.0,0.00021917,2]
[327746863,1716426656330,-160.835563,0.00021917,2]
[327746864,1716426656339,-160.835563,0.00021917,2]
[327746865,1716426656349,-1548.05,0.00021917,2]
[327746866,1716426656359,-500.0,0.00021917,2]
[327746867,1716426656368,-500.0,0.00021917,2]
[327746868,1716426656377,-1903.29,0.00021917,2]
[327746869,1716426656386,-500.0,0.00021917,2]
[327746870,1716426656396,-500.0,0.00021917,2]
[327746871,1716426656405,-523.72584751,0.00021917,2]
[327746872,1716426656414,-500.0,0.00021917,2]
[327746873,1716426656424,-2114.34,0.00021917,2]
[327746874,1716426656433,-500.0,0.00021917,2]
[327746875,1716426656443,-151.0,0.00021917,2]
[327746876,1716426656452,-500.0,0.00021917,2]
[327746877,1716426656462,-151.0,0.00021917,2]
[327746878,1716426656471,-3529.96,0.00021917,2]
[327746879,1716426656480,-500.0,0.00021917,2]
[327746880,1716426656490,-500.0,0.00021917,2]
[327746881,1716426656499,-500.0,0.00021917,2]
[327746882,1716426656509,-500.0,0.00021917,2]
[327746883,1716426656518,-500.0,0.00021917,2]
[327746884,1716426656528,-500.0,0.00021917,2]
[327746885,1716426656538,-500.0,0.00021917,2]
[327746886,1716426656547,-500.0,0.00021917,2]
[327746887,1716426656556,-500.0,0.00021917,2]
[327746888,1716426656566,-524.88,0.00021917,2]
[327746889,1716426656575,-500.0,0.00021917,2]
[327746890,1716426656584,-500.0,0.00021917,2]
[327746891,1716426656593,-1185.63,0.00021917,2]
[327746892,1716426656602,-500.0,0.00021917,2]
[327746893,1716426656613,-572.02,0.00021917,2]
[327746894,1716426656622,-506.0896636,0.00021917,2]
[327746895,1716426656632,-500.0,0.00021917,2]
[327746896,1716426656641,-1072.65,0.00021917,2]
[327746897,1716426656651,-500.0,0.00021917,2]
[327746898,1716426656660,-500.0,0.00021917,2]
[327746899,1716426656669,-500.0,0.00021917,2]
[327746900,1716426656678,-2912.02,0.00021917,2]
[327746901,1716426656687,-500.0,0.00021917,2]
[327746902,1716426656696,-510.43167209,0.00021917,2]
[327746903,1716426656708,-500.0,0.00021917,2]
[327746904,1716426656718,-500.0,0.00021917,2]
[327746905,1716426656727,-500.0,0.00021917,2]
[327746906,1716426656739,-500.0,0.00021917,2]
[327746907,1716426656748,-1275.89,0.00021917,2]
[327746908,1716426656757,-500.0,0.00021917,2]
[327746909,1716426656768,-507.41602308,0.00021917,2]
[327746910,1716426656778,-500.0,0.00021917,2]
[327746911,1716426656788,-500.0,0.00021917,2]
[327746912,1716426656797,-2786.57,0.00021917,2]
[327746913,1716426656936,-500.0,0.00021917,2]
[327746914,1716426656949,-500.0,0.00021917,2]
[327746915,1716426656959,-500.0,0.00021917,2]
[327746916,1716426656968,-500.0,0.00021917,2]
[327746917,1716426656978,-500.0,0.00021917,2]
[327746918,1716426656987,-500.0,0.00021917,2]
[327746919,1716426656996,-500.0,0.00021917,2]
[327746920,1716426657005,-991.14,0.00021917,2]
[327746921,1716426657015,-500.0,0.00021917,2]
[327746922,1716426657024,-1717.570394,0.00021917,2]
[327746923,1716426657033,-500.0,0.00021917,2]
[327746924,1716426657043,-500.0,0.00021917,2]
[327746925,1716426657052,-500.0,0.00021917,2]
[327746926,1716426657061,-1717.570394,0.00021917,2]
[327746927,1716426657070,-500.0,0.00021917,2]
[327746928,1716426657079,-503.53373802,0.00021917,2]
[327746929,1716426657088,-992.65,0.00021917,2]
[327746930,1716426657097,-505.46420404,0.00021917,2]
[327746931,1716426657106,-500.0,0.00021917,2]
[327746932,1716426657116,-823.09,0.00021917,2]
[327746933,1716426657125,-500.0,0.00021917,2]
[327746934,1716426657134,-151.0,0.00021917,2]
[327746935,1716426657144,-151.0,0.00021917,2]
[327746936,1716426657153,-500.0,0.00021917,2]
[327746937,1716426657163,-1717.570394,0.00021917,2]
[327746938,1716426657172,-1717.570394,0.00021917,2]
[327746939,1716426657182,-945.3,0.00021917,2]
[327746940,1716426657191,-1118.48,0.00021917,2]
[327746941,1716426657200,-1735.83,0.00021917,2]
[327746942,1716426657210,-500.0,0.00021917,2]
[327746943,1716426657219,-500.0,0.00021917,2]
[327746944,1716426657228,-512.03815015,0.00021917,2]
[327746945,1716426657238,-506.58872396,0.00021917,2]
[327746946,1716426657248,-847.5,0.00021917,2]
[327746947,1716426657257,-500.0,0.00021917,2]
[327746948,1716426657267,-581.15,0.00021917,2]
[327746949,1716426657277,-332.730865,0.00021917,2]
[327746950,1716426657286,-510.31929504,0.00021917,2]
[327746951,1716426657296,-332.730865,0.00021917,2]
[327746952,1716426657305,-500.0,0.00021917,2]
[327746953,1716426657315,-500.0,0.00021917,2]
[327746954,1716426657324,-527.30503423,0.00021917,2]
[327746955,1716426657334,-505.42405977,0.00021917,2]
[327746956,1716426657344,-500.0,0.00021917,2]
[327746957,1716426657353,-500.0,0.00021917,2]
[327746958,1716426657364,-332.730865,0.00021917,2]
[327746959,1716426657373,-500.0,0.00021917,2]
[327746960,1716426657382,-332.730865,0.00021917,2]
[327746961,1716426657391,-500.0,0.00021917,2]
[327746962,1716426657400,-500.0,0.00021917,2]
[327746963,1716426657410,-500.0,0.00021917,2]
[327746964,1716426657419,-510.63664628,0.00021917,2]
[327746965,1716426657429,-1281.74,0.00021917,2]
[327746966,1716426657439,-500.0,0.00021917,2]
[327746967,1716426657448,-500.0,0.00021917,2]
[327746968,1716426657458,-1543.8,0.00021917,2]
[327746969,1716426657468,-500.0,0.00021917,2]
[327746970,1716426657478,-1159.16,0.00021917,2]
[327746971,1716426657487,-500.0,0.00021917,2]
[327746972,1716426657497,-500.0,0.00021917,2]
[327746973,1716426657507,-500.0,0.00021917,2]
[327746974,1716426657516,-500.0,0.00021917,2]
[327746975,1716426657526,-1060.7,0.00021917,2]
[327746976,1716426657535,-1455.98,0.00021917,2]
[327746977,1716426657545,-241.705779,0.00021917,2]
[327746978,1716426657555,-241.705779,0.00021917,2]
[327746979,1716426657564,-1182.68,0.00021917,2]
[327746980,1716426657573,-500.0,0.00021917,2]
[327746981,1716426657583,-500.0,0.00021917,2]
[327746982,1716426657592,-241.705779,0.00021917,2]
[327746983,1716426657602,-816.83,0.00021917,2]
[327746984,1716426657613,-500.0,0.00021917,2]
[327746985,1716426657623,-500.0,0.00021917,2]
[327746986,1716426657631,-500.0,0.00021917,2]
[327746987,1716426657641,-241.705779,0.00021917,2]
[327746988,1716426657650,-500.0,0.00021917,2]
[327746989,1716426657659,-500.0,0.00021917,2]
[327746990,1716426657669,-507.87209226,0.00021917,2]
[327746991,1716426657678,-1209.43,0.00021917,2]
[327746992,1716426657687,-500.0,0.00021917,2]
[327746993,1716426657696,-500.0,0.00021917,2]
[327746994,1716426657706,-1071.08,0.00021917,2]
[327746995,1716426657715,-730.73,0.00021917,2]
[327746996,1716426657724,-950.7,0.00021917,2]
[327746997,1716426657736,-500.0,0.00021917,2]
[327746998,1716426657748,-500.0,0.00021917,2]
[327746999,1716426657757,-508.62538792,0.00021917,2]
[327747000,1716426657767,-1755.43,0.00021917,2]
[327747001,1716426657778,-500.59916156,0.00021917,2]
[327747002,1716426657787,-500.0,0.00021917,2]
[327747003,1716426657797,-977.89,0.00021917,2]
[327747004,1716426657807,-500.0,0.00021917,2]
[327747005,1716426657820,-502.87758787,0.00021917,2]
[327747006,1716426657830,-500.0,0.00021917,2]
[327747007,1716426657840,-500.0,0.00021917,2]
[327747008,1716426657849,-500.0,0.00021917,2]
[327747009,1716426657860,-990.31,0.00021917,2]
[327747010,1716426657870,-500.0,0.00021917,2]
[327747011,1716426657879,-973.33,0.00021917,2]
[327747012,1716426657888,-77055.52413225,0.00021917,2]
[327747013,1716426657897,-974.99,0.00021917,2]
[327747014,1716426657907,-500.0,0.00021917,2]
[327747015,1716426657916,-507.86098721,0.00021917,2]
[327747016,1716426657925,-500.0,0.00021917,2]
[327747017,1716426657934,-513.31207633,0.00021917,2]
[327747018,1716426657943,-500.0,0.00021917,2]
[327747019,1716426657952,-500.0,0.00021917,2]
[327747020,1716426657961,-515.01671933,0.00021917,2]
[327747021,1716426657970,-560.14707663,0.00021917,2]
[327747022,1716426657979,-765.17,0.00021917,2]
[327747023,1716426657989,-500.0,0.00021917,2]
[327747024,1716426657998,-509.11761114,0.00021917,2]
[327747025,1716426658007,-500.0,0.00021917,2]
[327747026,1716426658017,-500.0,0.00021917,2]
[327747027,1716426658026,-500.0,0.00021917,2]
[327747028,1716426658034,-500.0,0.00021917,2]
[327747029,1716426658044,-509.32355622,0.00021917,2]
[327747030,1716426658053,-3405.53,0.00021917,2]
[327747031,1716426658062,-500.0,0.00021917,2]
[327747032,1716426658071,-1323.69,0.00021917,2]
[327747033,1716426658080,-500.0,0.00021917,2]
[327747034,1716426658089,-500.0,0.00021917,2]
[327747035,1716426658098,-500.0,0.00021917,2]
[327747036,1716426658107,-500.0,0.00021917,2]
[327747037,1716426658117,-500.0,0.00021917,2]
[327747038,1716426658126,-1486.42,0.00021917,2]
[327747039,1716426658135,-500.0,0.00021917,2]
[327747040,1716426658145,-500.0,0.00021917,2]
[327747041,1716426658154,-151.0,0.00021917,2]
[327747042,1716426658163,-151.0,0.00021917,2]
[327747043,1716426658172,-506.30697702,0.00021917,2]
[327747044,1716426658182,-500.0,0.00021917,2]
[327747045,1716426658191,-1000.0,0.00021917,2]
[327747046,1716426658201,-500.0,0.00021917,2]
[327747047,1716426658210,-500.0,0.00021917,2]
[327747048,1716426658219,-273.753749,0.00021917,2]
[327747049,1716426658229,-500.0,0.00021917,2]
[327747050,1716426658238,-1625.24,0.00021917,2]
[327747051,1716426658247,-193.0,0.00021918,2]
[327747052,1716426658258,-1420.3,0.00021918,2]
[327747053,1716426658267,-2000.0,0.00021918,2]
[327747054,1716426658276,-1196.57,0.00021918,2]
[327747055,1716426658285,-1996.0,0.00021918,2]
[327747056,1716426658294,-163.86,0.00021918,2]
[327747057,1716426658303,-151.0,0.00021918,2]
[327747058,1716426658312,-151.0,0.00021918,2]
[327747059,1716426658322,-152.224267,0.00021918,2]
[327747060,1716426658331,-2367.91,0.0002192,2]
[327747061,1716426658340,-2367.91,0.0002192,2]
[327747062,1716426658350,-2367.91,0.0002192,2]
[327747063,1716426658360,-2367.91,0.0002192,2]
[327747064,1716426658370,-2367.91,0.0002192,2]
[327747065,1716426658380,-150.0,0.0002195,2]
[327747066,1716426658389,-150.0,0.0002195,2]
[327747067,1716426658398,-150.0,0.0002195,2]
[327747068,1716426658407,-1400.0,0.0002195,2]
[327747069,1716426658419,-974.0,0.0002195,2]
[327747070,1716426658428,-2161.0,0.0002195,2]
[327747071,1716426658438,-1225.0,0.0002195,2]
[327747072,1716426658448,-1643.0,0.0002195,2]
[327747073,1716426658458,-613.0,0.0002195,2]
[327747074,1716426658468,-1263.0,0.0002195,2]
[327747075,1716426658477,-150.0,0.0002195,2]
[327747076,1716426658488,-445.0,0.0002195,2]
[327747077,1716426658497,-439.0,0.0002195,2]
[327747078,1716426658507,-809.0,0.0002195,2]
[327747079,1716426658516,-164.0,0.0002195,2]
[327747080,1716426658526,-1326.614,0.0002195,2]
[327747081,1716426658535,-215.0,0.0002195,2]
[327747082,1716426658545,-1649.0,0.0002195,2]
[327747083,1716426658554,-150.0,0.0002195,2]
[327747084,1716426658563,-3162.0,0.0002195,2]
[327747085,1716426658572,-1137.0,0.0002195,2]
[327747086,1716426658582,-5134.0,0.0002195,2]
[327747087,1716426658591,-289.0,0.0002195,2]
[327747088,1716426658600,-5759.0,0.0002195,2]
[327747089,1716426658609,-1465.0,0.0002195,2]
[327747090,1716426658619,-37894.0,0.0002195,2]
[327747091,1716426658628,-1061.0,0.0002195,2]
[327747092,1716426658637,-787.61802861,0.00022,2]
[327747093,1716426658647,-155.0,0.00022,2]
[327747094,1716426658656,-150.0,0.00022,3]
[327747095,1716426658665,-167.0,0.00022013,2]
[327747096,1716426658674,-166.15120559,0.0002209,2]
[327747097,1716426658683,-151.0,0.00022142,7]
[327747098,1716426658692,-1717.570394,0.00022142,7]
[327747099,1716426658701,-151.0,0.00022142,7]
[327747100,1716426658710,-1717.570394,0.00022142,7]
[327747101,1716426658720,-332.730865,0.00022142,7]
[327747102,1716426658729,-332.730865,0.00022142,7]
[327747103,1716426658742,-241.705779,0.00022142,7]
[327747104,1716426658752,-241.705779,0.00022142,7]
[327747105,1716426658761,-151.0,0.00022157,7]
[327747106,1716426658770,-151.0,0.00022157,7]
[327747107,1716426658782,-151.0,0.00022157,7]
[327747108,1716426658791,-160.835563,0.00022157,7]
[327747109,1716426658800,-160.835563,0.00022157,7]
[327747110,1716426658810,-151.0,0.00022157,7]
[327747111,1716426658822,-6864.26896502,0.00022157,2]
[327747112,1716426658832,-240.0,0.00022186,2]
[327747113,1716426658842,-877.35,0.0002219,2]
[327747114,1716426658851,-877.35,0.0002219,2]
[327747115,1716426658862,-877.35,0.0002219,2]
[327747116,1716426658871,-877.35,0.0002219,2]
[327747117,1716426658881,-500.0,0.0002219,2]
[327747118,1716426658891,-500.0,0.0002219,2]
[327747119,1716426658900,-500.0,0.0002219,2]
[327747120,1716426658909,-500.0,0.0002219,2]
[327747121,1716426658919,-500.0,0.0002219,2]
[327747122,1716426658928,-347.70016191,0.0002219,2]
[327747123,1716426658937,-500.0,0.0002219,2]
[327747124,1716426658946,-500.0,0.0002219,2]
[327747125,1716426658956,-500.0,0.0002219,2]
[327747126,1716426658965,-500.0,0.0002219,2]
[327747127,1716426658974,-150.0,0.0002219,2]
[327747128,1716426658983,-153555.84976653,0.00022191,11]
[327747129,1716426658993,-500.0,0.00022191,2]
[327747130,1716426659002,-500.0,0.00022191,2]
[327747131,1716426659011,-500.0,0.00022191,2]
[327747132,1716426659020,-500.0,0.00022191,2]
[327747133,1716426659029,-507.34971279,0.00022191,2]
[327747134,1716426659039,-500.0,0.00022191,2]
[327747135,1716426659048,-500.0,0.00022191,2]
[327747136,1716426659185,-500.0,0.00022191,2]
[327747137,1716426659195,-500.0,0.00022191,2]
[327747138,1716426659205,-1630.4,0.00022191,2]
[327747139,1716426659214,-500.0,0.00022191,2]
[327747140,1716426659223,-500.0,0.00022191,2]
[327747141,1716426659232,-500.0,0.00022191,2]
[327747142,1716426659241,-375.65990106,0.00022191,2]
[327747143,1716426659251,-510.35065495,0.00022191,2]
[327747144,1716426659260,-500.0,0.00022191,2]
[327747145,1716426659269,-500.0,0.00022191,2]
[327747146,1716426659278,-500.0,0.00022191,2]
[327747147,1716426659288,-334.56448476,0.00022191,2]
[327747148,1716426659297,-500.0,0.00022191,2]
[327747149,1716426659307,-500.0,0.00022191,2]
[327747150,1716426659316,-500.0,0.00022191,2]
[327747151,1716426659325,-157.88818276,0.00022191,2]
[327747152,1716426659334,-500.0,0.00022191,2]
[327747153,1716426659344,-512.91427954,0.00022191,2]
[327747154,1716426659353,-531.81928035,0.00022191,2]
[327747155,1716426659364,-500.0,0.00022191,2]
[327747156,1716426659374,-500.0,0.00022191,2]
[327747157,1716426659382,-513.92370697,0.00022191,2]
[327747158,1716426659391,-500.0,0.00022191,2]
[327747159,1716426659401,-500.0,0.00022191,2]
[327747160,1716426659411,-500.0,0.00022191,2]
[327747161,1716426659421,-1975.97,0.00022191,2]
[327747162,1716426659431,-500.0,0.00022191,2]
[327747163,1716426659440,-500.0,0.00022191,2]
[327747164,1716426659449,-867.84,0.00022191,2]
[327747165,1716426659459,-500.0,0.00022191,2]
[327747166,1716426659469,-500.0,0.00022191,2]
[327747167,1716426659478,-500.0,0.00022191,2]
[327747168,1716426659488,-500.0,0.00022191,2]
[327747169,1716426659498,-500.0,0.00022191,2]
[327747170,1716426659509,-500.0,0.00022191,2]
[327747171,1716426659519,-511.95267463,0.00022191,2]
[327747172,1716426659528,-500.0,0.00022191,2]
[327747173,1716426659538,-500.0,0.00022191,2]
[327747174,1716426659549,-500.0,0.00022191,2]
[327747175,1716426659560,-500.0,0.00022191,2]
[327747176,1716426659570,-500.0,0.00022191,2]
[327747177,1716426659579,-500.0,0.00022191,2]
[327747178,1716426659596,-500.0,0.00022191,2]
[327747179,1716426659606,-500.0,0.00022191,2]
[327747180,1716426659618,-500.0,0.00022191,2]
[327747181,1716426659628,-1023.97,0.00022191,2]
[327747182,1716426659638,-500.0,0.00022191,2]
[327747183,1716426659648,-500.0,0.00022191,2]
[327747184,1716426659659,-1186.79,0.00022191,2]
[327747185,1716426659669,-500.0,0.00022191,2]
[327747186,1716426659680,-500.0,0.00022191,2]